bitfinex/quotes_SOLUSD_20220226
["timestamp","ask_amount","ask_price","bid_price","bid_amount"]
[1645842228361,1.80033907,93.734,93.6,12.91]
[1645842228562,1.80033907,93.734,93.59,12.91]
[1645842228563,5.0,93.728,93.59,12.91]
[1645842229163,1.83666144,93.727,93.59,12.91]
[1645842229563,5.0,93.728,93.59,12.91]
[1645842229767,0.51166928,93.727,93.59,12.91]
[1645842230163,17.85938638,93.735,93.591,31.89134183]
[1645842230362,17.85938638,93.735,93.592,3.01317064]
[1645842230763,2.34833072,93.734,93.6,16.0159]
[1645842230964,2.34833072,93.734,93.611,7.46565312]
[1645842231264,1.86282946,93.786,93.753,30.2823213]
[1645842231265,51.12275552,93.76,93.753,30.2823213]
[1645842231465,3.03062783,93.759,93.68,12.91]
[1645842231764,3.03062783,93.759,93.66,12.91]
[1645842232165,4.83745394,93.759,93.64,12.91]
[1645842232365,2.34833072,93.758,93.571,5.0]
[1645842232585,2.34833072,93.758,93.575,2.86292427]
[1645842232765,3.03062783,93.759,93.631,5.0]
[1645842232965,4.71492932,93.759,93.64,12.91]
[1645842233566,4.71492932,93.759,93.571,5.0]
[1645842233567,5.0,93.758,93.62,12.91]
[1645842233768,4.71492932,93.759,93.62,12.91]
[1645842233967,2.34833072,93.758,93.62,12.91]
[1645842234968,4.49972542,93.759,93.62,12.91]
[1645842235371,5.0,93.738,93.593,2.65944508]
[1645842235569,51.93556807,93.737,93.6,12.91]
[1645842235870,1.7676553,93.736,93.61,12.91]
[1645842236068,50.30023072,93.736,93.6,12.91]
[1645842236268,1.84152462,93.735,93.6,12.91]
[1645842236767,1.83666144,93.735,93.6,12.91]
[1645842236967,1.02626283,93.734,93.6,12.91]
[1645842237169,1.53793211,93.734,93.6,12.91]
[1645842238373,70.52729862,93.735,93.6,12.91]
[1645842238570,1.40169463,93.734,93.6,12.91]
[1645842238770,1.83666144,93.733,93.6,12.91]
[1645842241672,5.0,93.728,93.58,12.91]
[1645842241875,5.0,93.728,93.554,3.07728686]
[1645842242071,5.0,93.728,93.56,12.91]
[1645842242271,76.58964622,93.727,93.56,12.91]
[1645842242471,1.83395572,93.726,93.56,12.91]
[1645842242671,23.0651,93.726,93.56,12.91]
[1645842242876,1.50786764,93.725,93.561,5.85169397]
[1645842243072,3.852076,93.725,93.561,2.86292427]
[1645842243371,3.852076,93.725,93.562,2.86292427]
[1645842243372,1.50786764,93.725,93.562,2.86292427]
[1645842243572,2.34420836,93.724,93.561,2.92673896]
[1645842243773,2.34420836,93.724,93.561,2.661559]
[1645842243973,2.34420836,93.724,93.56,12.91]
[1645842244576,44.75324779,93.722,93.56,12.91]
[1645842244776,42.92348963,93.722,93.56,12.91]
[1645842245075,1.37260911,93.721,93.56,12.91]
[1645842246578,108.07260911,93.721,93.56,12.91]
[1645842246780,1.45994191,93.72,93.56,12.91]
[1645842246980,1.45994191,93.72,93.561,6.58692451]
[1645842247811,1.45994191,93.72,93.563,2.42314124]
[1645842248012,42.92348963,93.722,93.564,4.271]
[1645842248214,42.92348963,93.722,93.591,5.0]
[1645842248411,76.5776,93.753,93.624,2.75127575]
[1645842248613,76.5776,93.753,93.631,106.7]
[1645842248809,112.2079,93.816,93.632,2.74372669]
[1645842249010,1.75071727,93.83,93.635,2.69653956]
[1645842249210,5.0,93.928,93.691,5.0]
[1645842249412,161.36,94.0,93.662,105.0]
[1645842249413,15.8826,94.053,93.874,5.0]
[1645842249609,1.86436238,94.178,93.99,161.36]
[1645842249808,1.63639863,94.207,94.0,12.91]
[1645842250010,287.32809531,94.069,94.01,12.91]
[1645842250208,287.32809531,94.069,94.0,161.36]
[1645842250209,196.26959531,94.069,94.0,161.36]
[1645842250410,168.97909531,94.069,94.01,174.27]
[1645842250609,51.42263172,94.068,94.001,9.253]
[1645842250812,51.42263172,94.068,93.991,3.0989052]
[1645842251011,51.42263172,94.068,93.99,12.91]
[1645842251210,105.0,94.067,93.979,0.00931636]
[1645842251414,80.0,94.066,93.951,2.99261224]
[1645842251711,5.0,94.049,93.9,12.91]
[1645842251910,1.4221478,94.064,93.841,5.0]
[1645842252211,48.44593082,94.048,93.841,7.89157808]
[1645842252411,48.44593082,94.048,93.88,15.9656]
[1645842252412,1.76785282,94.047,93.88,15.9656]
[1645842252710,1.76785282,94.047,93.89,12.91]
[1645842252914,4.256,94.046,93.89,12.91]
[1645842253113,5.0,94.038,93.89,12.91]
[1645842253415,5.0,94.028,93.89,12.91]
[1645842253614,43.01789601,94.027,93.89,12.91]
[1645842253813,54.237496,94.007,93.852,4.256]
[1645842254013,5.0,93.998,93.85,12.91]
[1645842254214,5.0,93.968,93.782,6.52285192]
[1645842254418,5.0,93.948,93.8,12.91]
[1645842254614,4.261,93.947,93.801,4.261]
[1645842254816,4.261,93.947,93.81,12.91]
[1645842255016,1.56436355,93.956,93.81,12.91]
[1645842255017,4.26,93.955,93.81,12.91]
[1645842255715,1.56436355,93.956,93.811,4.26]
[1645842256122,4.26,93.955,93.81,12.91]
[1645842256518,4.26,93.955,93.81,28.8884]
[1645842256718,1.56436355,93.956,93.811,7.1214706]
[1645842256922,1.56436355,93.956,93.821,5.0]
[1645842257121,1.56436355,93.956,93.822,4.26]
[1645842257320,1.56436355,93.956,93.822,7.12292427]
[1645842257523,1.81310134,93.956,93.822,7.12292427]
[1645842257722,1.81310134,93.956,93.83,12.91]
[1645842258121,1.81310134,93.956,93.831,6.85127401]
[1645842258323,39.69221402,93.957,93.831,6.65530909]
[1645842258524,1.60025756,93.956,93.831,6.65530909]
[1645842259025,4.26,93.955,93.831,4.26]
[1645842259423,4.26,93.955,93.781,2.35675601]
[1645842259623,4.26,93.955,93.82,12.91]
[1645842260226,1.60025756,93.956,93.82,12.91]
[1645842260622,4.26,93.955,93.82,12.91]
[1645842261424,5.0,93.948,93.802,2.78732734]
[1645842261723,12.91,93.95,93.778,2.86292427]
[1645842261724,58.1186601,93.937,93.791,3.09725056]
[1645842261924,58.1186601,93.937,93.761,23.9728]
[1645842261925,5.0,93.918,93.762,2.94122526]
[1645842262123,45.46715705,93.907,93.762,2.94122526]
[1645842262323,5.75004342,93.906,93.762,2.94122526]
[1645842262524,5.75004342,93.906,93.76,12.91]
[1645842262725,5.0,93.898,93.74,12.91]
[1645842262924,12.91,93.89,93.73,12.91]
[1645842263124,50.92239034,93.889,93.74,12.91]
[1645842263324,49.06003081,93.889,93.74,12.91]
[1645842263524,1.81551338,93.888,93.74,12.91]
[1645842263925,4.263,93.887,93.74,12.91]
[1645842265927,105.0,93.886,93.701,5.0]
[1645842266128,5.0,93.788,93.705,2.86292427]
[1645842266330,4.266,93.787,93.649,3.774538]
[1645842266728,12.91,93.78,93.649,3.774538]
[1645842266928,4.268,93.779,93.649,3.774538]
[1645842267128,1.58360737,93.779,93.649,3.774538]
[1645842267527,2.08403149,93.777,93.649,3.774538]
[1645842267728,4.268,93.776,93.649,3.774538]
[1645842268128,2.08403149,93.777,93.63,16.0092]
[1645842268630,4.268,93.776,93.63,16.0092]
[1645842268834,6.35203149,93.777,93.63,16.0092]
[1645842269031,6.35203149,93.777,93.631,4.268]
[1645842269032,2.08403149,93.777,93.631,4.268]
[1645842269232,2.08403149,93.777,93.657,113.0]
[1645842269430,1.71144196,93.809,93.67,12.91]
[1645842269631,1.59409433,93.838,93.691,113.0]
[1645842269831,1.59409433,93.838,93.692,4.266]
[1645842270431,60.16630803,93.837,93.692,6.33056084]
[1645842270636,2.13414848,93.836,93.692,6.33056084]
[1645842271632,2.13414848,93.836,93.692,2.06456084]
[1645842272033,2.13414848,93.836,93.693,4.266]
[1645842272234,2.13414848,93.836,93.71,15.9962]
[1645842272435,2.13414848,93.836,93.72,12.91]
[1645842272636,60.16630803,93.837,93.721,4.265]
[1645842272835,60.16630803,93.837,93.721,6.36338439]
[1645842273034,2.16392249,93.879,93.721,11.36338439]
[1645842273234,1.88271804,93.889,93.731,5.0]
[1645842273434,72.1124,93.899,93.741,7.77013116]
[1645842273636,1.71640921,93.913,93.771,5.0]
[1645842273856,1.71640921,93.913,93.781,5.0]
[1645842274039,1.71640921,93.913,93.772,4.511]
[1645842274040,60.8055446,93.912,93.78,12.91]
[1645842274236,1.97089926,93.911,93.781,4.261]
[1645842274536,17.171,93.91,93.781,4.261]
[1645842274737,1.98207733,93.909,93.761,4.261]
[1645842274937,4.261,93.908,93.761,4.261]
[1645842275141,4.261,93.908,93.76,12.91]
[1645842275536,1.98207733,93.909,93.77,15.9865]
[1645842275737,1.98207733,93.909,93.771,4.261]
[1645842276946,106.7,93.907,93.771,4.261]
[1645842277146,106.7,93.905,93.741,4.261]
[1645842277347,106.7,93.903,93.741,4.261]
[1645842277546,106.7,93.889,93.74,15.9918]
[1645842277747,106.7,93.886,93.74,15.9918]
[1645842277947,54.03053395,93.887,93.74,15.9918]
[1645842277948,106.7,93.884,93.74,15.9918]
[1645842278148,106.7,93.884,93.726,4.263]
[1645842278149,12.91,93.87,93.726,4.263]
[1645842278350,12.91,93.87,93.71,28.9074]
[1645842278351,106.7,93.867,93.71,15.9974]
[1645842278549,6.13830902,93.866,93.672,4.264]
[1645842278750,6.13830902,93.866,93.66,12.91]
[1645842278751,5.0,93.858,93.66,12.91]
[1645842278949,106.7,93.847,93.675,106.7]
[1645842279151,106.7,93.845,93.675,106.7]
[1645842279348,12.91,93.83,93.676,4.265]
[1645842279551,49.25616892,93.828,93.68,16.0026]
[1645842279849,6.03007041,93.827,93.692,106.7]
[1645842280048,6.03007041,93.827,93.681,4.266]
[1645842280250,6.03007041,93.827,93.68,16.0026]
[1645842281054,6.03007041,93.827,93.692,106.7]
[1645842281254,1.76407041,93.827,93.693,4.266]
[1645842281467,1.76407041,93.827,93.692,4.266]
[1645842282964,1.76407041,93.827,93.692,110.966]
[1645842283166,1.76407041,93.827,93.701,106.7]
[1645842283368,1.76407041,93.827,93.728,106.7]
[1645842283666,49.25616892,93.828,93.731,106.7]
[1645842283865,1.80541786,93.858,93.732,4.265]
[1645842284065,1.67167065,93.878,93.732,4.265]
[1645842284465,1.67167065,93.878,93.741,106.7]
[1645842284668,1.67167065,93.878,93.751,106.7]
[1645842284865,46.13203949,93.877,93.75,12.91]
[1645842285066,1.94803023,93.876,93.75,12.91]
[1645842285466,1.94803023,93.876,93.76,15.9902]
[1645842286267,1.94803023,93.876,93.731,4.263]
[1645842286973,106.7,93.869,93.731,4.263]
[1645842287268,153.49637812,93.858,93.701,4.264]
[1645842287469,2.14447746,93.857,93.701,4.264]
[1645842287871,4.264,93.856,93.7,53.3233]
[1645842288071,2.14447746,93.857,93.705,106.7]
[1645842288271,2.14447746,93.857,93.706,4.264]
[1645842288473,16.0015,93.85,93.72,15.9986]
[1645842288677,1.81732296,93.849,93.72,15.9986]
[1645842289276,108.51732296,93.849,93.72,15.9986]
[1645842289482,2.13424499,93.848,93.72,15.9986]
[1645842290679,2.13424499,93.848,93.73,15.9965]
[1645842291478,2.13424499,93.848,93.731,106.7]
[1645842291680,2.13424499,93.848,93.73,15.9965]
[1645842291881,2.13424499,93.848,93.731,4.264]
[1645842292379,44.79297562,93.858,93.731,110.964]
[1645842292579,1.9458281,93.857,93.74,15.9954]
[1645842292779,1.9458281,93.857,93.741,110.964]
[1645842293782,1.9458281,93.857,93.742,0.25]
[1645842293982,1.9458281,93.857,93.743,4.264]
[1645842294184,1.9458281,93.857,93.742,4.264]
[1645842294384,1.60645047,93.899,93.751,106.7]
[1645842294587,2.19313441,93.91,93.771,106.7]
[1645842294781,2.19313441,93.91,93.772,4.261]
[1645842295382,2.13221987,93.908,93.772,4.261]
[1645842295583,2.13221987,93.908,93.79,15.9876]
[1645842295783,2.13221987,93.908,93.791,4.261]
[1645842295984,2.13221987,93.908,93.791,106.7]
[1645842296184,2.13221987,93.908,93.792,4.261]
[1645842297585,2.13221987,93.908,93.801,106.7]
[1645842297786,2.13221987,93.908,93.802,4.261]
[1645842298585,2.13221987,93.908,93.83,15.9822]
[1645842299387,43.52771271,93.909,93.83,15.9822]
[1645842300187,43.52771271,93.909,93.831,106.7]
[1645842300388,43.52771271,93.909,93.84,15.98]
[1645842301388,1.58656401,93.908,93.84,15.98]
[1645842302490,1.58656401,93.908,93.82,15.9839]
[1645842303989,108.28656401,93.908,93.8,15.9871]
[1645842304188,12.91,93.9,93.76,12.91]
[1645842304391,1.65252505,93.899,93.752,4.261]
[1645842304592,1.65252505,93.899,93.751,4.263]
[1645842304790,1.95023794,93.906,93.751,11.53040844]
[1645842304993,1.95023794,93.906,93.781,106.7]
[1645842305190,1.95023794,93.906,93.791,111.7]
[1645842305392,43.52771271,93.909,93.801,5.0]
[1645842305590,43.52771271,93.909,93.811,106.7]
[1645842305792,1.65261871,93.908,93.81,12.91]
[1645842305991,1.65261871,93.908,93.79,12.91]
[1645842306191,1.65261871,93.908,93.82,15.9786]
[1645842306992,1.65261871,93.908,93.791,4.261]
[1645842307195,1.65261871,93.908,93.79,53.2858]
[1645842307994,1.65261871,93.908,93.77,53.2969]
[1645842307995,2.1318491,93.907,93.77,53.2969]
[1645842309394,2.1318491,93.907,93.74,53.3089]
[1645842309395,106.7,93.899,93.74,53.3089]
[1645842309698,158.32776437,93.888,93.74,53.3089]
[1645842309894,106.7,93.879,93.74,53.3089]
[1645842310097,1.87968462,93.878,93.74,53.3089]
[1645842310503,106.7,93.869,93.76,15.9942]
[1645842310701,151.86885318,93.868,93.76,15.9942]
[1645842310901,1.96202435,93.867,93.76,15.9942]
[1645842312500,1.96202435,93.867,93.761,106.7]
[1645842312699,1.96202435,93.867,93.76,15.9942]
[1645842312901,1.96202435,93.867,93.761,4.263]
[1645842313101,1.96202435,93.867,93.79,15.9884]
[1645842314509,1.8432112,93.899,93.79,15.9884]
[1645842315324,53.71365176,93.898,93.791,106.7]
[1645842315524,53.71365176,93.898,93.82,15.9802]
[1645842315725,1.44141962,93.954,93.82,15.9802]
[1645842315926,15.9834,93.95,93.821,110.96]
[1645842316124,2.03896779,93.954,93.821,110.96]
[1645842316325,2.03896779,93.954,93.821,106.7]
[1645842316526,2.03896779,93.954,93.85,15.9786]
[1645842316826,106.7,93.947,93.793,4.26]
[1645842317024,2.0165308,93.946,93.79,12.91]
[1645842317225,106.7,93.945,93.79,12.91]
[1645842317426,106.7,93.939,93.79,12.91]
[1645842317624,1.81146018,93.938,93.79,12.91]
[1645842317828,106.7,93.928,93.81,15.9857]
[1645842318025,1.7480519,93.928,93.81,15.9857]
[1645842318225,1.9036099,93.927,93.81,15.9857]
[1645842318424,2.06587285,93.926,93.81,15.9857]
[1645842318627,106.7,93.925,93.81,15.9857]
[1645842318825,1.71674273,93.918,93.81,15.9857]
[1645842319224,1.71674273,93.918,93.79,53.2857]
[1645842319225,1.71674273,93.918,93.79,15.9891]
[1645842319425,1.95347579,93.915,93.79,15.9891]
[1645842319625,106.7,93.913,93.79,15.9891]
[1645842319824,108.72316472,93.909,93.79,15.9891]
[1645842320028,108.72316472,93.909,93.742,4.261]
[1645842320225,108.72316472,93.909,93.734,4.263]
[1645842320226,106.7,93.907,93.734,4.263]
[1645842320426,106.7,93.905,93.734,4.263]
[1645842320629,106.7,93.903,93.734,4.263]
[1645842320928,106.7,93.887,93.734,4.263]
[1645842321126,2.01688474,93.886,93.734,4.263]
[1645842321628,1.8088346,93.879,93.76,15.9923]
[1645842322642,19.53932337,93.878,93.76,15.9923]
[1645842322829,1.66582236,93.877,93.76,15.9923]
[1645842323229,1.66671384,93.875,93.76,15.9923]
[1645842323630,1.66671384,93.875,93.77,15.9925]
[1645842323831,1.66671384,93.875,93.771,106.7]
[1645842324032,1.91116091,93.887,93.771,106.7]
[1645842324232,1.91116091,93.887,93.772,4.263]
[1645842324432,1.91116091,93.887,93.781,106.7]
[1645842324633,2.09856154,93.939,93.782,4.261]
[1645842324834,2.09856154,93.939,93.811,106.7]
[1645842325035,2.16207401,93.937,93.812,4.26]
[1645842325436,1.7799227,93.935,93.812,4.26]
[1645842325635,2.07430081,93.934,93.811,4.261]
[1645842325937,28.53098208,93.934,93.84,15.9808]
[1645842326134,1.84305556,93.933,93.841,106.7]
[1645842326344,1.84305556,93.933,93.811,5.0]
[1645842326537,1.84305556,93.933,93.82,12.91]
[1645842326939,1.84305556,93.933,93.821,110.96]
[1645842327539,1.84305556,93.933,93.86,15.9761]
[1645842328946,1.84305556,93.933,93.83,15.9804]
[1645842332644,106.7,93.929,93.81,15.9858]
[1645842332846,1.91947691,93.928,93.81,15.9858]
[1645842333045,1.92434553,93.927,93.81,15.9858]
[1645842333246,4.261,93.926,93.81,15.9858]
[1645842333445,46.6787461,93.909,93.801,4.26]
[1645842333746,1.81715201,93.908,93.801,4.26]
[1645842334147,24.37668127,93.907,93.801,4.26]
[1645842334345,2.12077736,93.906,93.801,4.26]
[1645842337754,15.9898,93.9,93.801,4.26]
[1645842338058,53.28317574,93.889,93.801,4.26]
[1645842338253,12.91,93.88,93.801,4.26]
[1645842338456,2.04557765,93.879,93.801,4.26]
[1645842339855,2.10133298,93.888,93.801,4.26]
[1645842343981,108.80133298,93.888,93.801,4.26]
[1645842344182,1.95331016,93.887,93.77,15.9923]
[1645842346985,1.99887848,93.885,93.77,15.9923]
[1645842347386,24.37668127,93.884,93.77,15.9923]
[1645842347585,1.89500483,93.883,93.77,15.9923]
[1645842347786,12.91,93.88,93.77,15.9923]
[1645842347990,1.79398767,93.879,93.77,15.9923]
[1645842348188,26.17066894,93.879,93.77,15.9923]
[1645842348490,1.98304446,93.877,93.75,15.9961]
[1645842348893,106.7,93.875,93.75,15.9961]
[1645842349089,106.7,93.873,93.75,15.9961]
[1645842349288,1.77331934,93.872,93.75,15.9961]
[1645842349488,106.7,93.859,93.73,53.3145]
[1645842349688,106.7,93.857,93.72,15.9992]
[1645842349891,1.84913925,93.856,93.712,12.81055938]
[1645842350089,1.84913925,93.856,93.732,106.7]
[1645842350288,1.84913925,93.856,93.728,4.264]
[1645842351288,1.84913925,93.856,93.723,16.2835]
[1645842351491,1.84913925,93.856,93.74,15.9977]
[1645842356298,1.92497277,93.855,93.74,15.9977]
[1645842356500,15.9979,93.85,93.74,15.9977]
[1645842356698,1.96655796,93.849,93.74,15.9977]
[1645842358400,108.66655796,93.849,93.74,15.9977]
[1645842358599,1.94981432,93.848,93.74,15.9977]
[1645842359199,15.9998,93.84,93.74,15.9977]
[1645842359399,53.13785342,93.839,93.74,15.9977]
[1645842359599,1.62300102,93.838,93.74,15.9977]
[1645842361002,16.0013,93.83,93.71,45.0207]
[1645842361204,1.88853513,93.828,93.71,16.0008]
[1645842361803,108.58853513,93.828,93.71,16.0008]
[1645842362004,106.7,93.819,93.71,16.0008]
[1645842362205,106.7,93.817,93.69,53.3376]
[1645842362403,106.7,93.817,93.68,16.006]
[1645842362404,1.58860039,93.816,93.68,16.006]
[1645842362603,106.7,93.815,93.68,16.006]
[1645842362805,4.266,93.814,93.68,16.006]
[1645842363003,152.04227479,93.798,93.68,16.006]
[1645842363203,53.5404168,93.779,93.68,16.006]
[1645842363405,51.6722227,93.779,93.68,16.006]
[1645842363604,1.85458839,93.778,93.68,16.006]
[1645842366304,51.6722227,93.779,93.71,16.0026]
[1645842366707,51.6722227,93.779,93.711,4.266]
[1645842366906,51.6722227,93.779,93.701,14.39022619]
[1645842367626,51.6722227,93.779,93.7,12.91]
[1645842368204,51.6722227,93.779,93.701,4.267]
[1645842368605,51.6722227,93.779,93.73,15.9979]
[1645842371815,1.95433325,93.839,93.73,15.9979]
[1645842372213,2.0247051,93.837,93.73,15.9979]
[1645842372612,15.9999,93.84,93.73,15.9979]
[1645842372613,2.04047076,93.835,93.73,15.9979]
[1645842372814,55.61128116,93.835,93.73,15.9979]
[1645842373015,1.88408462,93.834,93.73,15.9979]
[1645842373814,1.76979648,93.833,93.73,15.9979]
[1645842375935,106.7,93.829,93.73,15.9979]
[1645842376132,106.7,93.829,93.69,53.3425]
[1645842376333,108.75739386,93.827,93.69,53.3425]
[1645842376533,106.7,93.827,93.69,53.3425]
[1645842376734,106.7,93.825,93.69,53.3425]
[1645842376936,1.72071036,93.824,93.69,53.3425]
[1645842377134,1.72071036,93.824,93.69,16.0062]
[1645842377135,106.7,93.807,93.69,16.0062]
[1645842377335,2.18529431,93.806,93.69,16.0062]
[1645842377537,47.12334846,93.808,93.651,113.0]
[1645842377538,2.16281687,93.798,93.655,79.1328]
[1645842377936,1.59269377,93.796,93.654,24.2939]
[1645842378135,4.267,93.795,93.654,24.2939]
[1645842378335,106.7,93.794,93.654,24.2939]
[1645842378536,106.7,93.777,93.654,24.2939]
[1645842378735,153.5717656,93.749,93.65,16.013]
[1645842378935,2.18036482,93.748,93.605,28.2362]
[1645842379137,106.7,93.747,93.605,23.9682]
[1645842379336,1.68032569,93.746,93.605,23.9682]
[1645842379737,1.68032569,93.746,93.58,12.91]
[1645842379738,2.15672421,93.744,93.58,12.91]
[1645842379935,12.91,93.73,93.58,12.91]
[1645842380135,106.7,93.727,93.58,12.91]
[1645842380336,162.50303913,93.708,93.6,16.0197]
[1645842380536,1.68810278,93.707,93.6,16.0197]
[1645842382141,1.68810278,93.707,93.601,4.271]
[1645842382338,1.68810278,93.707,93.63,16.0166]
[1645842382540,54.13445359,93.708,93.63,16.0166]
[1645842382739,56.28557775,93.708,93.63,16.0166]
[1645842384039,2.11843443,93.707,93.63,16.0166]
[1645842384240,54.13445359,93.708,93.64,16.0141]
[1645842384642,54.13445359,93.708,93.641,2.86292427]
[1645842387443,54.13445359,93.708,93.65,16.0124]
[1645842387643,24.9736,93.744,93.65,16.0124]
[1645842387846,24.9736,93.744,93.651,2.86292427]
[1645842388045,24.9736,93.744,93.651,109.56292427]
[1645842388245,24.9736,93.744,93.651,2.86292427]
[1645842388446,1.7833696,93.788,93.652,2.86292427]
[1645842388647,57.65392875,93.787,93.652,2.86292427]
[1645842388850,23.64758824,93.78,93.652,2.86292427]
[1645842389047,1.74957796,93.779,93.652,2.86292427]
[1645842389546,57.65392875,93.787,93.671,106.7]
[1645842389751,1.61975318,93.786,93.67,12.91]
[1645842389948,1.61975318,93.786,93.672,2.86292427]
[1645842390547,1.61975318,93.786,93.7,16.0039]
[1645842395955,1.61975318,93.786,93.701,2.86292427]
[1645842396155,1.61975318,93.786,93.71,16.0018]
[1645842397556,57.65392875,93.787,93.71,16.0018]
[1645842397755,57.65392875,93.787,93.711,2.86292427]
[1645842398557,57.65392875,93.787,93.72,16.0005]
[1645842401859,57.65392875,93.787,93.72,18.86342427]
[1645842405867,2.02345816,93.786,93.72,16.0005]
[1645842410191,2.02345816,93.786,93.69,53.3421]
[1645842410192,2.02345816,93.786,93.7,16.0043]
[1645842415500,2.02345816,93.786,93.701,2.86292427]
[1645842416097,2.02345816,93.786,93.7,16.0043]
[1645842416300,23.10132177,93.785,93.691,2.86292427]
[1645842416497,23.10132177,93.785,93.66,66.2647]
[1645842416498,1.64826868,93.784,93.68,16.0074]
[1645842416900,1.6816897,93.782,93.68,16.0074]
[1645842417298,23.66614714,93.781,93.68,16.0074]
[1645842417600,25.18390981,93.78,93.68,16.0074]
[1645842417799,1.83476517,93.779,93.68,16.0074]
[1645842418001,24.93608694,93.779,93.68,16.0074]
[1645842418200,1.76824038,93.778,93.68,16.0074]
[1645842418401,1.71557451,93.777,93.68,16.0074]
[1645842418599,24.81689628,93.777,93.68,16.0074]
[1645842418801,1.6822998,93.776,93.68,16.0074]
[1645842419000,1.70394339,93.775,93.68,16.0074]
[1645842419202,23.10132177,93.775,93.68,16.0074]
[1645842419401,1.5873158,93.774,93.68,16.0074]
[1645842420003,2.08715716,93.772,93.68,16.0074]
[1645842420405,1.6408778,93.77,93.68,16.0074]
[1645842420903,25.43266102,93.769,93.68,16.0074]
[1645842421102,2.15648463,93.768,93.68,16.0074]
[1645842422202,2.15648463,93.768,93.65,18.87372427]
[1645842422406,1.99256555,93.766,93.65,34.52372427]
[1645842422805,23.10132177,93.765,93.65,18.87372427]
[1645842423003,1.59683545,93.764,93.65,18.87372427]
[1645842423404,23.10132177,93.763,93.65,18.87372427]
[1645842423605,1.96650622,93.762,93.651,2.86292427]
[1645842423803,1.75130516,93.773,93.67,16.0083]
[1645842424004,1.80724817,93.778,93.67,16.0083]
[1645842424604,24.90856994,93.778,93.67,16.0083]
[1645842424804,1.84221044,93.777,93.67,16.0083]
[1645842425506,23.10132177,93.777,93.67,16.0083]
[1645842425706,1.6707247,93.776,93.67,16.0083]
[1645842426106,1.9819046,93.775,93.67,16.0083]
[1645842426506,1.9819046,93.775,93.671,2.86292427]
[1645842426705,1.92627144,93.786,93.69,16.0056]
[1645842427107,1.89115423,93.786,93.691,2.86292427]
[1645842428510,1.89115423,93.786,93.7,16.0038]
[1645842430709,1.8736904,93.783,93.68,16.0077]
[1645842431109,108.73882894,93.779,93.643,2.86292427]
[1645842431309,2.15800203,93.778,93.643,2.86292427]
[1645842431507,1.9645684,93.776,93.631,43.03282427]
[1645842431706,4.268,93.775,93.631,43.03282427]
[1645842431908,130.31686629,93.777,93.64,16.0145]
[1645842431909,108.49932406,93.769,93.64,16.0145]
[1645842432312,1.81385375,93.768,93.64,16.0145]
[1645842432508,106.7,93.767,93.64,16.0145]
[1645842432709,1.68762676,93.766,93.64,16.0145]
[1645842432910,110.968,93.765,93.626,47.4237]
[1645842433108,1.90522016,93.764,93.626,23.6086]
[1645842433309,106.7,93.749,93.626,23.6086]
[1645842433613,1.97429638,93.729,93.626,23.6086]
[1645842435815,17.75119638,93.729,93.626,23.6086]
[1645842436012,2.0340306,93.728,93.626,23.6086]
[1645842437813,25.01005029,93.728,93.626,23.6086]
[1645842438013,1.99593136,93.727,93.626,23.6086]
[1645842442638,1.99593136,93.727,93.63,16.016]
[1645842442819,1.98572563,93.742,93.631,110.969]
[1645842443017,53.5494206,93.747,93.638,106.7]
[1645842443219,53.5494206,93.747,93.637,113.0]
[1645842443220,53.5494206,93.747,93.651,106.7]
[1645842443422,53.5494206,93.747,93.652,4.268]
[1645842443818,53.5494206,93.747,93.654,106.7]
[1645842444021,53.5494206,93.747,93.655,4.268]
[1645842444219,53.5494206,93.747,93.656,106.7]